bitfinex-derivatives/quotes_SOLF0:USTF0_20260222
["timestamp","ask_amount","ask_price","bid_price","bid_amount"]
[1771764613663,10.6561,84.484,84.395,5.07212205]
[1771764613867,9.30652527,84.483,84.395,5.07212205]
[1771764614065,179.72787172,84.485,84.395,5.07212205]
[1771764614066,10.93109017,84.477,84.395,5.07212205]
[1771764614366,10.93109017,84.475,84.395,5.07212205]
[1771764614565,9.30652527,84.474,84.395,5.07212205]
[1771764614765,9.30652527,84.473,84.395,5.07212205]
[1771764614956,9.30652527,84.472,84.395,5.07212205]
[1771764615161,9.30652527,84.471,84.395,5.07212205]
[1771764615457,9.30652527,84.47,84.395,5.07212205]
[1771764615658,9.30652527,84.469,84.395,5.07212205]
[1771764615869,9.30652527,84.468,84.395,5.07212205]
[1771764616165,9.30652527,84.467,84.395,5.07212205]
[1771764616464,10.6572,84.475,84.395,5.07212205]
[1771764616465,9.30652527,84.466,84.395,5.07212205]
[1771764616660,9.30652527,84.465,84.395,5.07212205]
[1771764616860,9.30652527,84.464,84.395,5.07212205]
[1771764617062,9.30652527,84.463,84.395,5.07212205]
[1771764617262,9.30652527,84.462,84.395,5.07212205]
[1771764617457,9.30652527,84.461,84.395,5.07212205]
[1771764617655,9.30652527,84.46,84.395,5.07212205]
[1771764617865,9.30652527,84.459,84.395,5.07212205]
[1771764618060,9.30652527,84.458,84.395,5.07212205]
[1771764618366,10.6577,84.471,84.395,5.07212205]
[1771764618563,9.30652527,84.47,84.395,5.07212205]
[1771764618762,9.30652527,84.469,84.395,5.07212205]
[1771764618959,9.30652527,84.468,84.395,5.07212205]
[1771764619164,9.30652527,84.467,84.395,5.07212205]
[1771764619360,9.30652527,84.466,84.395,5.07212205]
[1771764619667,9.30652527,84.465,84.395,5.07212205]
[1771764619860,10.6577,84.471,84.395,5.07212205]
[1771764619861,9.30652527,84.464,84.395,5.07212205]
[1771764620164,9.30652527,84.463,84.395,5.07212205]
[1771764620362,9.30652527,84.47,84.395,5.07212205]
[1771764620557,9.30652527,84.469,84.395,5.07212205]
[1771764620757,9.30652527,84.468,84.395,5.07212205]
[1771764620965,9.30652527,84.467,84.395,5.07212205]
[1771764621166,9.30652527,84.466,84.395,5.07212205]
[1771764621368,9.30652527,84.465,84.395,5.07212205]
[1771764621669,9.30652527,84.464,84.395,5.07212205]
[1771764621865,9.30652527,84.463,84.395,5.07212205]
[1771764622166,10.6583,84.467,84.395,5.07212205]
[1771764622465,9.30652527,84.466,84.395,5.07212205]
[1771764622665,9.30652527,84.465,84.395,5.07212205]
[1771764622865,9.30652527,84.464,84.395,5.07212205]
[1771764623166,9.30652527,84.466,84.395,5.07212205]
[1771764623367,9.30652527,84.465,84.395,5.07212205]
[1771764623563,10.6587,84.463,84.395,5.07212205]
[1771764628271,10.6598,84.455,84.395,5.07212205]
[1771764628975,10.6583,84.466,84.398,5.10378179]
[1771764629966,10.6594,84.458,84.398,5.10378179]
[1771764631378,10.6604,84.45,84.398,5.10378179]
[1771764632573,10.6604,84.45,84.4,5.10208812]
[1771764633383,10.6577,84.471,84.4,5.10208812]
[1771764636179,19.96422527,84.471,84.4,5.10208812]
[1771764636379,10.6577,84.471,84.4,5.10208812]
[1771764637079,10.6577,84.471,84.402,5.09060924]
[1771764637274,9.30652527,84.47,84.402,5.09060924]
[1771764638478,9.30652527,84.469,84.404,5.09061523]
[1771764638677,9.30652527,84.47,84.404,5.09061523]
[1771764638979,9.30652527,84.469,84.404,5.09061523]
[1771764639180,9.30652527,84.47,84.404,5.09061523]
[1771764639479,9.30652527,84.469,84.407,5.09242582]
[1771764639681,10.6577,84.471,84.407,5.09242582]
[1771764639682,9.30652527,84.47,84.407,5.09242582]
[1771764639979,9.30652527,84.469,84.407,5.09242582]
[1771764640281,9.30652527,84.47,84.41,5.09243148]
[1771764640476,9.30652527,84.469,84.41,5.09243148]
[1771764640675,9.30652527,84.468,84.41,5.09243148]
[1771764640875,9.30652527,84.479,84.41,5.09243148]
[1771764641076,9.30652527,84.478,84.41,5.09243148]
[1771764641274,9.30652527,84.477,84.41,5.09243148]
[1771764641479,9.30652527,84.476,84.41,5.09243148]
[1771764641782,9.30652527,84.475,84.413,5.09356343]
[1771764641977,9.30652527,84.474,84.413,5.09356343]
[1771764642179,9.30652527,84.473,84.413,5.09356343]
[1771764642379,9.30652527,84.472,84.413,5.09356343]
[1771764642580,9.30652527,84.471,84.413,5.09356343]
[1771764642780,9.30652527,84.47,84.413,5.09356343]
[1771764643081,9.30652527,84.469,84.413,5.09356343]
[1771764643276,9.30652527,84.468,84.413,5.09356343]
[1771764643474,9.30652527,84.467,84.413,5.09356343]
[1771764643673,9.30652527,84.466,84.413,5.09356343]
[1771764643878,9.30652527,84.465,84.413,5.09356343]
[1771764644183,10.6565,84.481,84.413,5.09356343]
[1771764644384,9.28994682,84.48,84.413,5.09356343]
[1771764644571,9.28994682,84.479,84.413,5.09356343]
[1771764644883,9.28994682,84.478,84.413,5.09356343]
[1771764645074,9.28994682,84.477,84.413,5.09356343]
[1771764645275,9.28994682,84.476,84.413,5.09356343]
[1771764645479,9.28994682,84.475,84.413,5.09356343]
[1771764645779,9.28994682,84.474,84.413,5.09356343]
[1771764646076,9.28994682,84.473,84.413,5.09356343]
[1771764646281,9.28994682,84.472,84.413,5.09356343]
[1771764646476,9.28994682,84.471,84.413,5.09356343]
[1771764646779,9.28994682,84.47,84.413,5.09356343]
[1771764646979,9.28994682,84.469,84.413,5.09356343]
[1771764647180,9.28994682,84.468,84.413,5.09356343]
[1771764647383,10.6565,84.481,84.413,5.09356343]
[1771764647384,9.28994682,84.467,84.413,5.09356343]
[1771764647578,9.28994682,84.466,84.413,5.09356343]
[1771764647779,9.28994682,84.465,84.413,5.09356343]
[1771764647980,9.28994682,84.464,84.413,5.09356343]
[1771764648184,9.28994682,84.463,84.413,5.09356343]
[1771764648484,21.58759017,84.481,84.413,5.09356343]
[1771764648485,9.28994682,84.462,84.413,5.09356343]
[1771764648683,9.28994682,84.461,84.413,5.09356343]
[1771764648883,9.28994682,84.46,84.413,5.09356343]
[1771764649084,10.6574,84.474,84.413,5.09356343]
[1771764649285,9.30626643,84.473,84.413,5.09356343]
[1771764649583,9.30626643,84.472,84.413,5.09356343]
[1771764649884,9.30626643,84.471,84.413,5.09356343]
[1771764650075,9.30626643,84.47,84.413,5.09356343]
[1771764650275,9.30626643,84.469,84.413,5.09356343]
[1771764650476,9.30626643,84.468,84.413,5.09356343]
[1771764650676,9.30626643,84.467,84.413,5.09356343]
[1771764650880,9.30626643,84.466,84.413,5.09356343]
[1771764651190,9.30626643,84.465,84.413,5.09356343]
[1771764651388,9.30626643,84.464,84.413,5.09356343]
[1771764651586,9.30626643,84.463,84.413,5.09356343]
[1771764651882,9.30626643,84.462,84.413,5.09356343]
[1771764652190,9.30626643,84.461,84.413,5.09356343]
[1771764652388,9.30626643,84.46,84.413,5.09356343]
[1771764652686,9.30626643,84.459,84.413,5.09356343]
[1771764652885,9.30626643,84.458,84.413,5.09356343]
[1771764653081,10.6578,84.47,84.413,5.09356343]
[1771764653082,9.30626643,84.457,84.413,5.09356343]
[1771764653283,9.30626643,84.456,84.413,5.09356343]
[1771764653587,10.6578,84.47,84.413,5.09356343]
[1771764653782,9.32514527,84.469,84.413,5.09356343]
[1771764654086,9.32514527,84.468,84.413,5.09356343]
[1771764654282,9.32514527,84.467,84.413,5.09356343]
[1771764654478,9.32514527,84.466,84.413,5.09356343]
[1771764654678,9.32514527,84.465,84.413,5.09356343]
[1771764654881,9.32514527,84.464,84.413,5.09356343]
[1771764655082,9.32514527,84.463,84.413,5.09356343]
[1771764655282,9.32514527,84.462,84.413,5.09356343]
[1771764655483,9.32514527,84.461,84.413,5.09356343]
[1771764655686,9.32514527,84.46,84.413,5.09356343]
[1771764655887,9.32514527,84.459,84.413,5.09356343]
[1771764656083,10.6578,84.47,84.413,5.09356343]
[1771764656286,10.6583,84.467,84.413,5.09356343]
[1771764656488,9.33020839,84.466,84.413,5.09356343]
[1771764656785,19.98870839,84.465,84.413,5.09356343]
[1771764657086,9.33020839,84.464,84.413,5.09356343]
[1771764657287,9.33020839,84.463,84.413,5.09356343]
[1771764657488,9.33020839,84.462,84.413,5.09356343]
[1771764657790,9.33020839,84.461,84.413,5.09356343]
[1771764657988,9.33020839,84.46,84.413,5.09356343]
[1771764658188,9.33020839,84.459,84.413,5.09356343]
[1771764658389,9.33020839,84.458,84.413,5.09356343]
[1771764658591,10.6585,84.465,84.413,5.09356343]
[1771764658890,9.33045702,84.464,84.413,5.09356343]
[1771764659086,9.33045702,84.463,84.413,5.09356343]
[1771764659290,9.33045702,84.462,84.413,5.09356343]
[1771764659585,9.33045702,84.461,84.413,5.09356343]
[1771764659782,9.33045702,84.46,84.413,5.09356343]
[1771764659983,9.33045702,84.459,84.413,5.09356343]
[1771764660181,9.33045702,84.458,84.413,5.09356343]
[1771764660383,9.33045702,84.457,84.413,5.09356343]
[1771764660586,9.33045702,84.456,84.413,5.09356343]
[1771764660882,10.6585,84.465,84.413,5.09356343]
[1771764661080,9.33181411,84.464,84.413,5.09356343]
[1771764661289,9.33181411,84.463,84.413,5.09356343]
[1771764661589,9.33181411,84.462,84.413,5.09356343]
[1771764661789,9.33181411,84.461,84.413,5.09356343]
[1771764661990,9.33181411,84.46,84.413,5.09356343]
[1771764662180,9.33181411,84.459,84.413,5.09356343]
[1771764662383,9.33181411,84.458,84.413,5.09356343]
[1771764662584,9.33181411,84.457,84.413,5.09356343]
[1771764662791,9.33181411,84.456,84.413,5.09356343]
[1771764662984,9.33181411,84.455,84.413,5.09356343]
[1771764663186,10.6575,84.473,84.413,5.09356343]
[1771764663391,9.33462656,84.472,84.413,5.09356343]
[1771764663591,9.33462656,84.471,84.413,5.09356343]
[1771764663792,9.33462656,84.47,84.413,5.09356343]
[1771764663987,9.33462656,84.469,84.413,5.09356343]
[1771764664190,9.33462656,84.468,84.413,5.09356343]
[1771764664389,9.33462656,84.467,84.413,5.09356343]
[1771764664590,9.33462656,84.466,84.413,5.09356343]
[1771764664893,9.33462656,84.465,84.418,5.14015162]
[1771764665095,9.33462656,84.464,84.418,5.14015162]
[1771764665296,9.33462656,84.463,84.418,5.14015162]
[1771764665498,9.33462656,84.462,84.418,5.14015162]
[1771764665687,9.33462656,84.461,84.418,5.14015162]
[1771764665888,9.33462656,84.46,84.418,5.14015162]
[1771764666088,9.33462656,84.459,84.418,5.14015162]
[1771764666291,9.33462656,84.458,84.418,5.14015162]
[1771764666493,9.33462656,84.457,84.418,5.14015162]
[1771764666693,10.6575,84.473,84.418,5.14015162]
[1771764666694,9.33462656,84.456,84.418,5.14015162]
[1771764666889,9.33462656,84.455,84.418,5.14015162]
[1771764667095,9.33462656,84.454,84.418,5.14015162]
[1771764667287,21.58859017,84.473,84.418,5.14015162]
[1771764667492,9.33908784,84.472,84.418,5.14015162]
[1771764667693,9.33908784,84.471,84.418,5.14015162]
[1771764667889,9.33908784,84.47,84.418,5.14015162]
[1771764668088,9.33908784,84.469,84.418,5.14015162]
[1771764668291,9.33908784,84.468,84.418,5.14015162]
[1771764668496,9.33908784,84.467,84.418,5.14015162]
[1771764668688,9.33908784,84.466,84.418,5.14015162]
[1771764668889,9.33908784,84.465,84.418,5.14015162]
[1771764669090,9.33908784,84.464,84.418,5.14015162]
[1771764669299,9.33908784,84.463,84.418,5.14015162]
[1771764669594,9.33908784,84.462,84.418,5.14015162]
[1771764669799,10.93109017,84.459,84.418,5.14015162]
[1771764669990,10.6575,84.473,84.418,5.14015162]
[1771764670197,10.6563,84.482,84.418,5.14015162]
[1771764670596,10.6546,84.496,84.422,5.1332856]
[1771764671100,21.2937,84.558,84.422,5.1332856]
[1771764671899,10.6533,84.506,84.442,5.13328763]
[1771764672196,35.55,84.549,84.442,5.13328763]
[1771764673701,10.6544,84.498,84.442,5.13328763]
[1771764674597,10.6531,84.508,84.442,5.13328763]
[1771764674903,21.2937,84.558,84.442,5.13328763]
[1771764675805,21.2937,84.558,84.403,35.55]
[1771764675806,10.6519,84.518,84.454,5.15899926]
[1771764676699,10.6519,84.518,84.456,5.14758216]
[1771764677405,10.6519,84.518,84.459,5.14758216]
[1771764679306,2.0596469,84.558,84.462,5.14397986]
[1771764679611,14.15320031,84.558,84.462,5.14397986]
[1771764679910,10.6487,84.543,84.464,10.6585]
[1771764680111,450.77095012,84.555,84.465,5.14398126]
[1771764681810,10.6487,84.542,84.465,5.14398126]
[1771764682211,450.77095012,84.555,84.465,5.14398126]
[1771764683310,10.6475,84.553,84.47,5.14823666]
[1771764683509,450.77095012,84.555,84.47,5.14823666]
[1771764684711,10.6485,84.544,84.47,5.14823666]
[1771764686412,9.27306988,84.543,84.47,5.14823666]
[1771764686912,10.6485,84.544,84.47,5.14823666]
[1771764690311,10.6496,84.536,84.47,5.14823666]
[1771764695918,10.6505,84.528,84.47,5.14823666]
[1771764696422,10.6518,84.518,84.47,5.14823666]
[1771764701931,10.6535,84.505,84.445,5.12197141]
[1771764703729,10.6535,84.505,84.449,5.12417273]
[1771764705228,2.05967128,84.548,84.449,5.12417273]
[1771764705229,10.6519,84.518,84.449,5.12417273]
[1771764707335,10.6519,84.518,84.451,5.14278336]
[1771764707935,10.6507,84.527,84.451,5.14278336]
[1771764708128,9.27792614,84.526,84.451,5.14278336]
[1771764708432,10.6507,84.527,84.451,5.14278336]
[1771764708433,9.27792614,84.525,84.451,5.14278336]
[1771764708632,9.27792614,84.524,84.451,5.14278336]
[1771764708833,9.27792614,84.523,84.451,5.14278336]
[1771764709028,9.27792614,84.522,84.451,5.14278336]
[1771764709235,9.27792614,84.521,84.453,5.14206119]
[1771764709431,9.27792614,84.52,84.453,5.14206119]
[1771764709631,9.27792614,84.519,84.453,5.14206119]
[1771764709834,9.27792614,84.518,84.453,5.14206119]
[1771764710040,10.6507,84.527,84.453,5.14206119]
[1771764710239,9.29894487,84.526,84.453,5.14206119]
[1771764710438,9.29894487,84.525,84.453,5.14206119]
[1771764710631,9.29894487,84.524,84.453,5.14206119]
[1771764710837,10.6507,84.527,84.458,5.12255559]
[1771764710838,9.29894487,84.523,84.458,5.12255559]
[1771764711138,9.29894487,84.522,84.458,5.12255559]
[1771764711338,9.29894487,84.521,84.458,5.12255559]
[1771764711533,9.29894487,84.52,84.458,5.12255559]
[1771764711839,10.88637692,84.54,84.458,5.12255559]
[1771764712039,9.30252461,84.539,84.458,5.12255559]
[1771764712233,20.18890153,84.538,84.458,5.12255559]
[1771764712539,9.30252461,84.537,84.458,5.12255559]
[1771764712839,9.30252461,84.536,84.466,5.14262513]
[1771764713138,9.30252461,84.535,84.466,5.14262513]
[1771764713340,9.30252461,84.534,84.466,5.14262513]
[1771764713529,9.30252461,84.533,84.466,5.14262513]
[1771764713734,9.30252461,84.532,84.466,5.14262513]
[1771764713937,9.30252461,84.531,84.466,5.14262513]
[1771764714137,9.30252461,84.53,84.466,5.14262513]
[1771764714338,9.30252461,84.529,84.466,5.14262513]
[1771764714537,9.30252461,84.528,84.466,5.14262513]
[1771764714845,9.30252461,84.527,84.466,5.14262513]
[1771764715037,9.30252461,84.526,84.466,5.14262513]
[1771764715238,9.30252461,84.525,84.466,5.14262513]
[1771764715436,9.30252461,84.524,84.466,5.14262513]
[1771764715635,9.30252461,84.523,84.466,5.14262513]
[1771764715836,9.30252461,84.522,84.466,5.14262513]
[1771764716140,9.30252461,84.521,84.468,5.1407533]
[1771764716335,9.30252461,84.52,84.468,5.1407533]
[1771764716535,9.30252461,84.519,84.468,5.1407533]
[1771764716736,9.30252461,84.518,84.468,5.1407533]
[1771764716936,9.30252461,84.517,84.47,5.14706758]
[1771764717131,10.88637692,84.537,84.47,5.14706758]
[1771764717340,9.29772654,84.536,84.47,5.14706758]
[1771764717640,10.88637692,84.537,84.47,5.14706758]
[1771764717641,9.29772654,84.535,84.47,5.14706758]
[1771764717840,9.29772654,84.534,84.47,5.14706758]
[1771764718031,9.29772654,84.533,84.47,5.14706758]
[1771764718237,9.29772654,84.532,84.48,5.14706839]
[1771764718436,9.29772654,84.531,84.48,5.14706839]
[1771764718633,9.29772654,84.53,84.48,5.14706839]
[1771764718837,9.29772654,84.529,84.48,5.14706839]
[1771764719037,9.29772654,84.528,84.48,5.14706839]
[1771764719346,9.29772654,84.527,84.48,5.14706839]
[1771764719539,9.29772654,84.527,84.431,254.70310027]
[1771764719540,10.6483,84.546,84.485,5.15186124]
[1771764719737,9.30455501,84.545,84.485,5.15186124]
[1771764719933,9.30455501,84.544,84.485,5.15186124]
[1771764720144,9.30455501,84.543,84.485,5.15186124]
[1771764720341,9.30455501,84.542,84.485,5.15186124]
[1771764720541,9.30455501,84.541,84.485,5.15186124]
[1771764720737,9.30455501,84.54,84.487,5.15203893]
[1771764721045,9.30455501,84.539,84.487,5.15203893]
[1771764721247,9.30455501,84.538,84.487,5.15203893]
[1771764721545,9.30455501,84.537,84.487,5.15203893]
[1771764721744,10.88637692,84.548,84.487,5.15203893]
[1771764721745,9.30455501,84.536,84.487,5.15203893]
[1771764721942,9.30455501,84.535,84.487,5.15203893]
[1771764722147,10.6501,84.531,84.464,10.6586]
[1771764722446,9.30455501,84.53,84.465,5.15203958]
[1771764722649,10.6507,84.527,84.465,5.15203958]
[1771764722843,9.30455501,84.526,84.465,5.15203958]
[1771764723044,9.30455501,84.525,84.465,5.15203958]
[1771764723244,9.30455501,84.524,84.465,5.15203958]
[1771764723438,10.6507,84.527,84.465,5.15203958]
[1771764723640,9.30119588,84.526,84.465,5.15203958]
[1771764723848,465.27852176,84.555,84.465,5.15203958]
[1771764723849,9.30119588,84.525,84.465,5.15203958]
[1771764724044,9.30119588,84.524,84.465,5.15203958]
[1771764724249,9.30119588,84.523,84.465,5.15203958]
[1771764724451,9.30119588,84.522,84.465,5.15203958]
[1771764724749,10.6523,84.514,84.465,5.15203958]
[1771764726150,10.6534,84.505,84.465,5.15203958]
[1771764727140,10.6522,84.515,84.465,5.15203958]
[1771764727344,9.30786308,84.514,84.465,5.15203958]
[1771764727641,9.30786308,84.513,84.465,5.15203958]
[1771764727942,9.30786308,84.512,84.465,5.15203958]
[1771764728139,9.30786308,84.511,84.465,5.15203958]
[1771764728345,10.88637692,84.528,84.465,5.15203958]
[1771764728346,9.30786308,84.51,84.465,5.15203958]
[1771764728545,10.88637692,84.538,84.465,5.15203958]
[1771764728752,9.30793834,84.537,84.465,5.15203958]
[1771764728950,9.30793834,84.536,84.465,5.15203958]
[1771764729153,9.30793834,84.535,84.465,5.15203958]
[1771764729452,9.30793834,84.534,84.465,5.15203958]
[1771764729752,9.30793834,84.533,84.465,5.15203958]
[1771764729942,9.30793834,84.532,84.465,5.15203958]
[1771764730146,9.30793834,84.531,84.465,5.15203958]
[1771764730343,9.30793834,84.53,84.465,5.15203958]
[1771764730549,9.30793834,84.529,84.465,5.15203958]
[1771764730748,9.30793834,84.529,84.431,254.70310027]
[1771764730749,9.30793834,84.528,84.476,5.16467531]
[1771764730948,9.30793834,84.527,84.476,5.16467531]
[1771764731144,9.30793834,84.526,84.476,5.16467531]
[1771764731343,9.30669585,84.525,84.476,5.16467531]
[1771764731547,9.30669585,84.524,84.476,5.16467531]
[1771764731849,9.30669585,84.523,84.476,5.16467531]
[1771764732046,10.97569459,84.542,84.476,5.16467531]
[1771764732251,10.6482,84.547,84.431,254.70310027]
[1771764732252,9.30682749,84.541,84.48,5.1646756]
[1771764732451,9.30682749,84.54,84.48,5.1646756]
[1771764732651,9.30682749,84.539,84.48,5.1646756]
[1771764732848,9.30682749,84.538,84.48,5.1646756]
[1771764733048,9.30682749,84.537,84.48,5.1646756]
[1771764733249,9.30682749,84.536,84.48,5.1646756]
[1771764733454,9.30682749,84.535,84.48,5.1646756]
[1771764733650,9.30682749,84.534,84.48,5.1646756]
[1771764733850,9.30682749,84.533,84.48,5.1646756]
[1771764734049,9.30682749,84.532,84.48,5.1646756]
[1771764734251,9.30682749,84.531,84.48,5.1646756]
[1771764734550,10.97569459,84.525,84.461,10.659]
[1771764734755,9.30682749,84.524,84.461,10.659]
[1771764734956,10.97569459,84.525,84.461,10.659]
[1771764734957,9.30682749,84.523,84.461,10.659]
[1771764735159,9.30682749,84.522,84.461,10.659]
[1771764735455,9.30682749,84.521,84.461,10.659]
[1771764735648,19.95832749,84.52,84.461,15.81413028]
[1771764735849,9.30682749,84.519,84.462,5.15513028]
[1771764736056,9.30682749,84.518,84.462,5.15513028]
[1771764736252,9.30682749,84.517,84.462,5.15513028]
[1771764736547,9.30682749,84.516,84.462,5.15513028]
[1771764736753,9.30682749,84.515,84.462,5.15513028]
[1771764737057,10.6515,84.52,84.462,5.15513028]
[1771764737058,9.30682749,84.514,84.462,5.15513028]
[1771764737254,9.30682749,84.513,84.462,5.15513028]
[1771764737459,9.30682749,84.512,84.462,5.15513028]
[1771764737658,9.30682749,84.511,84.462,5.15513028]
[1771764737859,9.30682749,84.51,84.462,5.15513028]
[1771764738066,9.30682749,84.509,84.462,5.15513028]
[1771764738358,9.30682749,84.508,84.462,5.15513028]
[1771764738551,9.30682749,84.507,84.462,5.15513028]
[1771764738754,9.30682749,84.506,84.462,5.15513028]
[1771764738951,10.6515,84.52,84.462,5.15513028]
[1771764739157,9.30195441,84.519,84.462,5.15513028]
[1771764739358,9.30195441,84.518,84.462,5.15513028]
[1771764739558,9.30195441,84.517,84.462,5.15513028]
[1771764739853,9.30195441,84.516,84.462,5.15513028]
[1771764740054,9.30195441,84.515,84.462,5.15513028]
[1771764740251,9.30195441,84.514,84.462,5.15513028]
[1771764740451,9.30195441,84.513,84.462,5.15513028]
[1771764740656,9.30195441,84.512,84.462,5.15513028]
[1771764740859,9.30195441,84.511,84.462,5.15513028]
[1771764741159,9.30195441,84.51,84.462,5.15513028]
[1771764741459,9.30195441,84.509,84.462,5.15513028]
[1771764741660,10.6526,84.512,84.462,5.15513028]
[1771764741959,9.3008879,84.511,84.462,5.15513028]
[1771764742159,9.3008879,84.51,84.462,5.15513028]
[1771764742358,9.3008879,84.509,84.462,5.15513028]
[1771764742561,10.6526,84.512,84.462,5.15513028]
[1771764742860,10.6528,84.51,84.462,5.15513028]
[1771764743061,9.30056383,84.509,84.462,5.15513028]
[1771764743361,10.6528,84.51,84.462,5.15513028]
[1771764743762,10.6533,84.507,84.462,5.15513028]
[1771764748665,10.6543,84.499,84.444,5.08193218]
[1771764748864,10.6543,84.499,84.434,10.6623]
[1771764748865,9.25422882,84.498,84.432,5.08193218]
[1771764749064,9.25422882,84.497,84.432,5.08193218]
[1771764749266,10.6555,84.489,84.432,5.08193218]
[1771764749468,9.25422882,84.488,84.432,5.08193218]
[1771764749665,9.25422882,84.487,84.432,5.08193218]
[1771764749867,9.25422882,84.486,84.432,5.08193218]
[1771764750064,9.25422882,84.485,84.432,5.08193218]
[1771764750265,10.97569459,84.506,84.432,5.08193218]
[1771764750466,9.24506371,84.505,84.432,5.08193218]
[1771764750770,10.97569459,84.506,84.432,5.08193218]
[1771764750771,10.6558,84.487,84.432,5.08193218]
[1771764752268,10.6541,84.5,84.438,5.06964328]
[1771764752464,9.23792673,84.499,84.438,5.06964328]
[1771764752663,9.23792673,84.498,84.438,5.06964328]
[1771764752864,10.6541,84.5,84.438,5.06964328]
[1771764753170,9.23838085,84.499,84.438,5.06964328]
[1771764753359,9.23838085,84.499,84.431,254.70310027]
[1771764753360,10.6528,84.511,84.449,5.07548685]
[1771764753567,9.23837905,84.51,84.449,5.07548685]
[1771764753766,9.23837905,84.509,84.449,5.07548685]
[1771764753968,10.6528,84.511,84.449,5.07548685]
[1771764754165,9.23583129,84.51,84.449,5.07548685]
[1771764754370,10.6533,84.506,84.449,5.07548685]
[1771764760471,10.6542,84.499,84.449,5.07548685]
[1771764766282,10.653,84.509,84.449,5.07548685]
[1771764766482,9.22917949,84.508,84.449,5.07548685]
[1771764766683,10.653,84.509,84.449,5.07548685]
[1771764766684,9.22917949,84.507,84.449,5.07548685]
[1771764766882,10.653,84.509,84.449,5.07548685]
[1771764767082,9.23457206,84.508,84.449,5.07548685]
[1771764767285,9.23457206,84.507,84.449,5.07548685]
[1771764767486,10.653,84.509,84.449,5.07548685]
[1771764767779,9.23600898,84.508,84.449,5.07548685]
[1771764767982,9.23600898,84.507,84.449,5.07548685]
[1771764768184,10.653,84.509,84.449,5.07548685]
[1771764768385,9.23760547,84.508,84.449,5.07548685]
[1771764768682,9.23760547,84.507,84.449,5.07548685]
[1771764768880,9.23760547,84.506,84.449,5.07548685]
[1771764769180,10.653,84.509,84.449,5.07548685]
[1771764769385,9.23893202,84.508,84.449,5.07548685]
[1771764769583,9.23893202,84.507,84.449,5.07548685]
[1771764769778,9.23893202,84.506,84.449,5.07548685]
[1771764770085,10.653,84.509,84.449,5.07548685]
[1771764770283,10.653,84.509,84.431,254.70310027]
[1771764770284,9.23893985,84.508,84.451,5.08396357]
[1771764770485,9.23893985,84.507,84.451,5.08396357]
[1771764770686,9.23893985,84.506,84.451,5.08396357]
[1771764770883,10.653,84.509,84.451,5.08396357]
[1771764771083,9.23967244,84.508,84.451,5.08396357]
[1771764771284,9.23967244,84.507,84.451,5.08396357]
[1771764771484,9.23967244,84.506,84.451,5.08396357]
[1771764771686,10.653,84.509,84.451,5.08396357]
[1771764771886,9.23965403,84.508,84.451,5.08396357]
[1771764772089,9.23965403,84.507,84.451,5.08396357]
[1771764772286,9.23965403,84.506,84.451,5.08396357]
[1771764772487,9.23976233,84.505,84.451,5.08396357]
[1771764772689,10.653,84.509,84.451,5.08396357]
[1771764772989,9.23976233,84.508,84.451,5.08396357]
[1771764773190,9.23976233,84.507,84.451,5.08396357]
[1771764773389,9.23976233,84.506,84.451,5.08396357]
[1771764773593,10.653,84.509,84.451,5.08396357]
[1771764773793,9.23999435,84.508,84.451,5.08396357]
[1771764774093,9.23999435,84.507,84.451,5.08396357]
[1771764774294,9.23999435,84.506,84.451,5.08396357]
[1771764774494,9.23999435,84.505,84.451,5.08396357]
[1771764774694,10.653,84.509,84.451,5.08396357]
[1771764774887,9.24109957,84.508,84.451,5.08396357]
[1771764775089,9.24109957,84.507,84.451,5.08396357]
[1771764775291,9.24109957,84.506,84.451,5.08396357]
[1771764775588,10.93723951,84.533,84.458,5.08736801]
[1771764775786,10.93723951,84.53,84.458,5.08736801]
[1771764775993,9.24271944,84.529,84.458,5.08736801]
[1771764776287,10.6515,84.521,84.458,5.08736801]
[1771764776596,9.24271944,84.52,84.458,5.08736801]
[1771764776797,10.6528,84.51,84.458,5.08736801]
[1771764776999,9.24271944,84.509,84.458,5.08736801]
[1771764777199,9.26890563,84.508,84.458,5.08736801]
[1771764777391,10.93723951,84.527,84.458,5.08736801]
[1771764777589,9.26873699,84.526,84.458,5.08736801]
[1771764777793,9.26873699,84.525,84.458,5.08736801]
[1771764777993,9.26873699,84.524,84.458,5.08736801]
[1771764778297,9.26873699,84.523,84.458,5.08736801]
[1771764778592,9.26873699,84.522,84.458,5.08736801]
[1771764778797,10.6532,84.507,84.458,5.08736801]
[1771764779094,9.26873699,84.506,84.458,5.08736801]
[1771764779297,10.6532,84.507,84.458,5.08736801]
[1771764779497,9.27295332,84.506,84.458,5.08736801]
[1771764779698,10.6532,84.507,84.458,5.08736801]
[1771764779892,9.27240484,84.506,84.458,5.08736801]
[1771764780088,9.27240484,84.505,84.458,5.08736801]
[1771764780293,9.27240484,84.504,84.458,5.08736801]
[1771764780600,9.27240484,84.503,84.458,5.08736801]
[1771764780800,9.27240484,84.502,84.458,5.08736801]
[1771764781090,10.6532,84.507,84.458,5.08736801]
[1771764781290,9.27160437,84.506,84.458,5.08736801]